bitfinex-derivatives/quotes_ETHF0:USTF0_20250125
["timestamp","ask_amount","ask_price","bid_price","bid_amount"]
[1737824765205,0.5162,3343.8,3343.6,0.47859]
[1737824766510,0.5162,3343.8,3343.5,0.9885]
[1737824766711,0.47859,3343.6,3343.3,0.47863]
[1737824767211,0.5162,3343.8,3343.2,0.4851]
[1737824767415,0.47858,3343.7,3343.5,0.4786]
[1737824767715,0.99478,3343.8,3343.5,0.4786]
[1737824768015,0.99478,3343.8,3343.2,0.4851]
[1737824768215,0.99478,3343.8,3343.4,0.47861]
[1737824769217,2.74737568,3343.6,3343.2,0.47864]
[1737824769913,2.26877568,3343.6,3343.3,0.47863]
[1737824770218,0.5162,3343.8,3343.5,0.4786]
[1737824770814,0.99477,3343.8,3343.4,0.47861]
[1737824771016,0.5162,3343.8,3343.1,3.2078]
[1737824771215,0.47858,3343.7,3343.3,0.47863]
[1737824771621,0.99478,3343.8,3343.0,0.5081]
[1737824772721,0.47858,3343.7,3343.3,0.47862]
[1737824772920,0.47858,3343.7,3343.0,0.5081]
[1737824773123,0.47858,3343.7,3343.3,0.47862]
[1737824774423,0.5201,3343.6,3343.3,0.47862]
[1737824774720,0.5201,3343.6,3343.4,0.47862]
[1737824775223,0.5201,3343.6,3343.3,0.47863]
[1737824776019,0.5201,3343.6,3343.4,0.47862]
[1737824777328,0.5201,3343.6,3343.0,0.5081]
[1737824777526,0.5162,3343.8,3343.1,0.47866]
[1737824777729,0.5162,3343.8,3343.5,0.4786]
[1737824777933,0.99477,3343.8,3343.4,0.47861]
[1737824778426,0.5162,3343.8,3343.0,0.5081]
[1737824778619,3.2078,3344.3,3344.2,0.4785]
[1737824778829,4.1628,3344.3,3344.2,0.4785]
[1737824779620,0.955,3344.3,3344.2,0.4785]
[1737824779928,0.955,3344.3,3343.9,3.2078]
[1737824779929,0.955,3344.3,3344.1,0.47851]
[1737824780126,0.5076,3344.2,3344.1,0.47851]
[1737824780522,0.5076,3344.2,3344.1,0.47852]
[1737824781130,0.5076,3344.2,3344.0,0.47852]
[1737824781331,0.5076,3344.2,3344.1,0.47852]
[1737824781932,4.1628,3344.3,3344.2,0.47851]
[1737824782232,0.955,3344.3,3344.2,0.47851]
[1737824782433,4.1628,3344.3,3344.2,0.47851]
[1737824782633,3.2078,3344.3,3344.2,0.47851]
[1737824783230,3.2078,3344.7,3344.1,3.2078]
[1737824783427,3.2078,3344.7,3344.2,1.19627]
[1737824783731,3.2078,3344.7,3344.6,0.47845]
[1737824784235,0.955,3344.8,3344.7,0.47843]
[1737824784728,18.04857568,3345.1,3344.3,1.4737]
[1737824784729,3.2078,3345.1,3344.5,3.2078]
[1737824784931,3.2078,3345.1,3344.9,0.47841]
[1737824785431,2.26877568,3345.4,3344.9,0.47841]
[1737824785725,3.22377568,3345.4,3344.9,0.47841]
[1737824786128,3.22277568,3345.4,3344.9,0.47841]
[1737824786830,0.954,3345.4,3344.9,0.47841]
[1737824787537,3.22277568,3345.4,3344.9,0.47841]
[1737824788031,2.74711568,3345.4,3344.9,0.47841]
[1737824788226,0.954,3345.3,3344.9,0.47841]
[1737824788633,0.954,3345.3,3344.6,0.00448491]
[1737824788834,2.26877568,3345.1,3344.6,0.00448491]
[1737824789034,3.2078,3344.8,3344.6,0.00448491]
[1737824789236,0.00448491,3345.0,3344.6,0.00448491]
[1737824789437,0.00448491,3345.0,3344.9,0.47841]
[1737824791032,3.2078,3345.6,3344.9,5.22077568]
[1737824791335,5.47657568,3346.0,3345.9,0.47826]
[1737824791532,6.43057568,3346.0,3345.0,0.9903]
[1737824791732,0.954,3345.9,3345.7,0.47828]
[1737824791932,0.954,3345.9,3345.1,4.14795]
[1737824792142,0.954,3345.9,3345.8,0.47828]
[1737824792329,0.954,3345.9,3345.3,1.19588]
[1737824792530,0.954,3345.9,3345.8,0.47828]
[1737824792730,5.47657568,3346.0,3345.3,1.19588]
[1737824792937,0.954,3345.9,3345.7,0.47828]
[1737824793140,0.954,3345.9,3345.8,0.47828]
[1737824793335,3.2078,3346.0,3345.3,2.952]
[1737824793538,0.00448491,3346.2,3346.1,0.47823]
[1737824793741,14.07773717,3346.2,3346.1,0.47823]
[1737824794238,14.07773717,3346.2,3346.1,3.68603]
[1737824800640,14.07773717,3346.2,3346.1,1.07424689]
[1737824800836,14.07773717,3346.2,3346.1,1.55247689]
[1737824803844,14.07773717,3346.2,3346.1,0.47823]
[1737824804944,14.55831202,3346.2,3346.1,0.47823]
[1737824805439,15.03653202,3346.2,3346.1,0.47823]
[1737824805748,0.47824,3346.1,3345.9,0.47826]
[1737824806042,0.95881485,3346.1,3345.9,0.47826]
[1737824806437,0.95881485,3346.1,3345.6,0.508]
[1737824806638,0.95881485,3346.1,3343.7,3.2922]
[1737824806639,3.6861,3345.7,3344.9,2.26877568]
[1737824806845,3.6861,3345.7,3344.9,2.75447568]
[1737824806846,0.47832,3345.5,3344.9,2.75447568]
[1737824807243,1.0174,3345.6,3344.9,0.4857]
[1737824807444,1.0174,3345.6,3344.8,3.6798]
[1737824807631,0.45467808,3345.5,3345.0,0.47838]
[1737824807838,0.47837,3345.2,3344.9,0.4784]
[1737824808137,3.2078,3345.3,3344.7,0.47843]
[1737824808138,0.4784,3345.0,3344.7,0.47843]
[1737824808343,1.4555,3344.9,3344.6,0.00448491]
[1737824808544,4.6633,3344.9,3344.6,0.00448491]
[1737824808942,0.47842,3344.8,3344.6,0.00448491]
[1737824809343,4.6633,3344.9,3344.6,0.00448491]
[1737824809535,4.6633,3344.9,3344.7,0.47842]
[1737824809942,4.6633,3344.9,3344.8,0.47842]
[1737824810149,0.954,3344.9,3344.8,0.47842]
[1737824812841,3.7153,3345.3,3344.6,0.00448491]
[1737824813041,3.7153,3345.3,3345.2,0.47836]
[1737824813042,3.2078,3345.3,3345.2,0.47836]
[1737824821851,3.2078,3345.3,3344.7,0.4761]
[1737824821852,3.68616,3345.3,3344.7,0.4761]
[1737824822052,1.0019,3345.2,3344.6,0.73104708]
[1737824822248,0.47838,3345.1,3344.8,0.47841]
[1737824822452,0.47838,3345.1,3344.6,0.73104708]
[1737824822642,0.47838,3345.1,3344.9,0.4784]
[1737824822848,0.47838,3345.1,3344.6,0.49618491]
[1737824823150,1.48027,3345.2,3344.6,0.49618491]
[1737824823352,1.48027,3345.2,3345.0,0.47838]
[1737824823755,0.47838,3345.1,3345.0,0.47838]
[1737824824254,0.47838,3345.1,3344.9,0.47839]
[1737824824454,0.47838,3345.1,3345.0,0.47839]
[1737824824655,1.0019,3345.2,3345.0,0.47839]
[1737824824846,1.48027,3345.2,3345.1,0.47838]
[1737824825956,0.47838,3345.1,3344.8,0.47841]
[1737824826157,1.4736,3345.2,3344.8,0.47841]
[1737824826459,0.47843,3344.7,3344.6,0.00448491]
[1737824826752,0.47845,3344.6,3344.1,0.47851]
[1737824827055,3.2078,3344.3,3344.2,0.47851]
[1737824831245,0.4945,3344.5,3344.0,2.26877568]
[1737824831554,0.95848491,3344.6,3344.5,0.47846]
[1737824831957,1.45298491,3344.6,3344.5,0.47846]
[1737824832463,0.00448491,3344.6,3344.5,0.47846]
[1737824833253,4.1904,3345.4,3344.5,2.952]
[1737824833254,0.954,3345.2,3344.5,2.952]
[1737824833551,3.2078,3345.4,3345.3,0.47835]
[1737824835762,0.00448491,3345.7,3345.6,0.47831]
[1737824836154,3.21228491,3345.7,3345.6,0.47831]
[1737824838659,3.21228491,3345.7,3345.5,0.47831]
[1737824842163,3.21228491,3345.7,3345.2,0.47836]
[1737824842369,3.21228491,3345.7,3345.1,0.9792]
[1737824842370,3.21228491,3345.7,3345.5,0.47831]
[1737824842667,2.26877568,3345.6,3344.9,0.47839]
[1737824842864,3.2078,3345.1,3344.8,3.43041]
[1737824843168,0.4906,3345.0,3344.9,0.47841]
[1737824843580,1.4446,3345.0,3344.8,2.952]
[1737824843967,0.47841,3344.9,3344.8,2.952]
[1737824844162,0.47841,3344.9,3344.5,0.47846]
[1737824844361,1.4446,3345.0,3344.2,1.4598]
[1737824844362,3.2078,3344.7,3344.4,0.47847]
[1737824844562,3.2078,3344.7,3344.5,0.47846]
[1737824845664,3.2078,3344.7,3344.2,1.4598]
[1737824845964,3.2078,3344.7,3344.6,0.47845]
[1737824851067,3.75077568,3345.6,3345.0,0.47839]
[1737824851068,3.2078,3345.1,3345.0,0.47839]
[1737824851273,3.2078,3345.5,3345.4,0.47833]
[1737824851471,4.1618,3345.5,3345.4,0.47833]
[1737824851878,3.2078,3345.5,3345.4,0.47833]
[1737824853076,3.2078,3345.5,3345.0,2.952]
[1737824853381,0.95848491,3345.7,3345.0,2.952]
[1737824853382,3.68618,3345.1,3345.0,2.952]
[1737824854469,3.68618,3345.1,3344.2,4.7205]
[1737824854470,0.47842,3344.8,3344.4,0.47847]
[1737824854674,0.954,3344.7,3344.4,0.47847]
[1737824855075,3.2078,3344.6,3344.4,0.47847]
[1737824856282,3.2078,3344.6,3344.3,0.47848]
[1737824856786,3.2078,3344.6,3344.4,0.47848]
[1737824857279,3.2078,3344.6,3344.2,1.0049]
[1737824857478,3.2078,3344.6,3344.3,0.47848]
[1737824857881,3.2078,3344.6,3344.4,0.47847]
[1737824859383,3.2078,3344.6,3344.2,1.0049]
[1737824859683,3.2078,3344.6,3344.4,0.47848]
[1737824862587,3.2078,3344.6,3344.5,0.47846]
[1737824862783,3.2078,3344.6,3344.4,0.47847]
[1737824862976,3.2078,3344.6,3343.9,0.00448491]
[1737824862977,0.4785,3344.3,3344.0,0.47853]
[1737824863186,3.2078,3344.2,3343.9,0.00448491]
[1737824863385,0.47853,3344.1,3343.9,0.00448491]
[1737824863582,0.475,3344.0,3343.9,0.00448491]
[1737824863979,0.475,3344.0,3343.9,0.48303491]
[1737824864784,0.475,3344.0,3343.9,0.00448491]
[1737824864984,0.475,3344.0,3343.9,0.48303491]
[1737824866383,0.95353,3344.0,3343.9,0.00448491]
[1737824866582,0.475,3344.0,3343.9,0.00448491]
[1737824867691,0.475,3344.0,3343.9,0.48303491]
[1737824867994,0.475,3344.0,3343.9,0.00448491]
[1737824869885,0.95353,3344.0,3343.9,0.00448491]
[1737824870388,3.22230568,3344.0,3343.9,0.00448491]
[1737824878992,0.47865,3343.2,3342.9,0.47869]
[1737824879301,4.64047,3343.1,3342.3,2.952]
[1737824879605,4.6606,3343.1,3342.9,0.47869]
[1737824880296,4.6606,3343.1,3343.0,0.47868]
[1737824880601,4.6606,3343.1,3342.7,0.00448491]
[1737824880602,4.6606,3343.1,3342.9,0.47868]
[1737824881310,5.13927,3343.1,3342.8,0.4787]
[1737824882101,4.6606,3343.1,3342.7,0.00448491]
[1737824882298,0.47871,3342.8,3342.7,0.00448491]
[1737824882693,0.47877,3342.4,3342.1,0.9957]
[1737824882893,3.2078,3342.2,3342.1,0.9957]
[1737824883097,4.1618,3342.2,3342.1,0.9957]
[1737824883410,4.1618,3342.2,3342.1,0.5183]
[1737824883800,0.47881,3342.1,3341.8,0.49528491]
[1737824884205,0.47883,3342.0,3341.8,0.49528491]
[1737824885112,4.1618,3342.2,3341.8,0.49528491]
[1737824885411,0.47881,3342.1,3341.8,0.49528491]
[1737824885613,0.47882,3342.0,3341.8,0.49528491]
[1737824885812,0.47881,3342.1,3341.8,0.49528491]
[1737824887309,0.47884,3341.9,3341.8,0.00448491]
[1737824887613,2.26877568,3342.0,3341.8,0.00448491]
[1737824887910,0.954,3341.9,3341.8,0.48332491]
[1737824888110,0.954,3341.9,3341.8,0.00448491]
[1737824889012,1.43284,3341.9,3341.8,0.00448491]
[1737824889805,1.92254,3341.9,3341.8,0.00448491]
[1737824891416,0.954,3341.9,3341.8,0.00448491]
[1737824891805,1.43284,3341.9,3341.8,0.00448491]
[1737824895510,4.41184,3341.9,3341.8,0.00448491]
[1737824896308,4.91434,3341.9,3341.8,0.00448491]
[1737824896509,5.40024,3341.9,3341.8,0.00448491]
[1737824898123,4.41184,3341.9,3341.8,0.00448491]
[1737824900225,4.41184,3341.9,3341.0,0.47896]
[1737824900226,0.47891,3341.5,3341.0,0.47896]
[1737824900413,3.2078,3341.2,3341.0,0.47896]
[1737824900918,3.2078,3341.2,3340.9,1.0028]
[1737824901116,3.2078,3341.2,3341.0,0.47896]
[1737824901522,3.2078,3341.2,3340.9,1.48178]
[1737824901722,3.2078,3341.2,3340.9,1.0028]
[1737824901723,2.74773568,3341.0,3340.9,1.0028]
[1737824901910,3.70273568,3341.0,3340.9,1.0028]
[1737824902109,3.70273568,3341.0,3340.9,0.5054]
[1737824902313,3.70273568,3341.0,3340.8,0.00298992]
[1737824902314,8.47155136,3341.0,3340.8,0.00298992]
[1737824902514,8.47155136,3341.0,3339.2,8.42857568]
[1737824902515,0.9825,3340.9,3340.0,0.4805]
[1737824902727,3.2078,3340.1,3340.0,0.4805]
[1737824902919,4.1628,3340.1,3340.0,0.4805]
[1737824904131,4.1628,3340.1,3339.5,0.47918]
[1737824904424,3.2078,3339.7,3339.6,0.4817]
[1737824904619,3.2078,3339.7,3339.6,0.96086]
[1737824904819,0.955,3340.1,3339.6,0.4817]
[1737824905021,0.955,3340.1,3340.0,0.47911]
[1737824906033,0.955,3340.1,3339.6,0.4817]
[1737824906325,0.955,3340.1,3340.0,0.47911]
[1737824908222,0.955,3340.1,3339.6,0.4817]
[1737824908427,0.955,3340.1,3339.9,0.47911]
[1737824908730,0.955,3340.1,3340.0,0.47911]
[1737824911332,0.955,3340.1,3339.9,0.47911]
[1737824911533,0.955,3340.1,3340.0,0.47911]
[1737824914239,0.955,3340.1,3339.8,0.47913]
[1737824914445,2.26877568,3340.0,3339.6,0.4817]
[1737824914645,2.26877568,3340.0,3339.7,0.47914]
[1737824914836,3.2078,3339.8,3339.7,0.47914]
[1737824917636,3.2078,3339.8,3339.6,0.4817]
[1737824918141,3.2078,3339.8,3339.7,0.47915]
[1737824924648,3.20548758,3339.8,3339.7,0.47915]
[1737824925250,4.16048758,3339.8,3339.7,0.47915]
[1737824926653,3.20548758,3339.8,3339.7,0.47915]
[1737824927048,0.955,3339.9,3339.6,0.4817]
[1737824927248,0.955,3339.9,3339.8,0.47914]
[1737824927647,3.2078,3340.3,3339.6,0.4817]
[1737824927857,3.2078,3340.3,3340.2,0.47908]
[1737824928154,4.1628,3340.3,3340.2,0.47908]
[1737824928746,0.955,3340.4,3340.1,3.2078]
[1737824928952,0.955,3340.4,3340.3,0.47906]
[1737824929153,0.12894589,3340.4,3340.3,0.47906]
[1737824932867,3.2078,3340.8,3340.7,0.47901]
[1737824935168,0.955,3341.0,3340.9,0.47898]
[1737824935556,3.2078,3341.2,3341.1,0.47895]
[1737824935757,0.00448491,3341.4,3341.3,0.47892]
[1737824952274,0.00448491,3341.4,3341.3,5.69969568]
[1737824952475,4.91e-06,3341.4,3341.3,10.69969568]
[1737824953775,4.91e-06,3341.4,3341.3,10.93745235]
[1737824956180,4.91e-06,3341.4,3341.3,5.93745235]
[1737824956486,4.91e-06,3341.4,3341.3,13.63845235]
[1737824956980,4.91e-06,3341.4,3341.3,13.98513164]
[1737824957178,4.91e-06,3341.4,3341.3,14.44210082]
[1737824960289,1.0059,3342.4,3342.3,0.47878]
[1737824961377,1.0059,3342.4,3342.2,0.47879]
[1737824961577,0.47878,3342.3,3342.2,0.47879]
[1737824961977,1.48467,3342.4,3342.3,0.47878]
[1737824962182,1.0059,3342.4,3342.3,0.47878]
[1737824966385,0.509,3342.4,3342.3,0.47878]
[1737824977902,1.46718491,3342.7,3342.6,0.47873]
[1737824977903,0.00448491,3342.7,3342.6,0.47873]
[1737824978102,1.0013,3343.2,3342.5,3.2078]
[1737824978298,1.5214,3343.2,3343.1,0.47866]
[1737824979510,1.0098,3343.2,3343.1,0.47866]
[1737824982607,3.2078,3343.3,3342.8,1.20125491]
[1737824982806,3.2078,3343.3,3343.2,0.47865]
[1737824983510,0.00448491,3343.5,3343.4,0.47862]
[1737824993308,0.00448491,3343.5,3343.0,0.5088]
[1737824993508,3.2078,3343.3,3342.8,0.00448491]
[1737824993715,3.2078,3342.9,3342.8,0.48317491]
[1737824998515,3.21228491,3343.5,3342.8,0.00448491]
[1737824998823,4.16628491,3343.5,3343.4,0.47862]
[1737824999218,0.00448491,3343.5,3343.4,0.47862]
[1737825001928,3.2078,3344.3,3344.2,0.47851]
[1737825002424,3.2078,3344.3,3344.0,0.47852]
[1737825002425,0.47851,3344.2,3344.0,0.47852]
[1737825002725,3.2078,3344.3,3343.3,1.4883]
[1737825002914,0.5133,3344.1,3343.8,0.47855]
[1737825003114,0.47858,3343.7,3343.5,0.4786]
[1737825003323,1.43257,3343.8,3343.5,0.47859]
[1737825003520,0.5158,3343.6,3343.5,0.47859]
[1737825003920,0.47862,3343.5,3343.3,0.47863]
[1737825004123,0.5133,3343.4,3343.3,0.47863]
[1737825004328,0.954,3343.8,3343.3,2.26877568]
[1737825004529,4.4488,3344.3,3344.0,0.47853]
[1737825004829,1.4698,3344.3,3344.0,0.47853]
[1737825007122,0.954,3344.2,3344.0,0.47853]
[1737825010931,0.954,3344.8,3344.0,3.68633]
[1737825011430,4.1618,3345.0,3344.0,4.20113]
[1737825011630,4.64019,3345.0,3344.0,4.20113]
[1737825011826,3.68625,3344.6,3344.0,0.99333]
[1737825012129,0.47849,3344.4,3344.0,0.47853]
[1737825012919,1.0083,3344.5,3344.0,0.47853]
[1737825013227,1.48677,3344.5,3344.0,0.47853]
[1737825014525,3.21228491,3344.1,3343.7,0.484]
[1737825014728,3.21228491,3344.1,3343.1,3.2078]
[1737825014729,0.5057,3344.0,3343.1,4.40444]
[1737825014932,3.2078,3343.7,3343.6,0.47859]
[1737825016028,0.5057,3344.0,3343.6,2.26877568]
[1737825016235,0.5057,3344.0,3343.9,0.47855]
[1737825018537,0.00448491,3344.1,3344.0,0.47853]
[1737825021234,0.00626865,3344.1,3344.0,0.47853]
[1737825024343,0.00626865,3344.1,3343.3,2.26877568]
[1737825024537,0.00626865,3344.1,3343.1,3.2078]
[1737825024538,3.2078,3343.9,3343.5,0.4786]
[1737825025241,3.2078,3343.9,3343.0,5.22077568]
[1737825025438,3.2078,3343.4,3343.2,0.47865]
[1737825025633,0.9902,3343.3,3343.2,0.47865]
[1737825027438,0.9902,3343.3,3342.8,1.00128491]
[1737825027639,0.9902,3343.3,3343.0,2.26877568]
[1737825027944,3.2078,3343.4,3343.3,0.47863]
[1737825030339,3.2078,3343.4,3342.8,1.00128491]
[1737825030546,0.99275,3343.3,3343.0,0.47867]
[1737825030735,1.0009,3343.2,3342.8,1.00128491]
[1737825030938,1.0009,3343.2,3343.0,0.47868]
[1737825031150,1.0009,3343.2,3342.8,1.00128491]
[1737825031446,3.2078,3343.0,3342.9,0.47869]
[1737825032244,3.2078,3343.0,3342.8,0.48318491]
[1737825032640,3.2078,3343.0,3342.9,0.47869]
[1737825033046,3.2078,3343.0,3342.8,0.48318491]
[1737825035142,3.2078,3343.0,3342.9,0.47869]
[1737825039552,3.68648,3343.0,3342.8,0.48318491]
[1737825039746,3.2078,3343.0,3342.8,0.00448491]
[1737825039953,0.47869,3342.9,3342.8,0.00448491]
[1737825040646,3.2078,3343.0,3342.9,0.47869]
[1737825040958,3.2078,3343.0,3342.9,0.96729]
[1737825041349,0.5141,3343.3,3343.2,0.47865]
[1737825041549,4.1618,3343.4,3343.3,0.47863]
[1737825042449,3.2078,3343.4,3343.3,0.47863]
[1737825042750,3.2078,3343.8,3343.7,0.47858]
[1737825047858,0.954,3344.0,3343.7,0.47858]
[1737825048046,0.00626865,3344.1,3344.0,0.47853]
[1737825052651,3.2078,3345.0,3344.9,0.47841]
[1737825053959,3.2078,3345.0,3344.6,0.00448491]
[1737825054256,2.26877568,3344.7,3343.5,2.26877568]
[1737825054560,0.47856,3343.9,3343.5,0.4786]
[1737825054860,1.4615,3343.8,3343.6,0.47859]
[1737825055158,1.4615,3343.8,3343.3,4.1761]
[1737825055462,1.4615,3343.8,3343.7,0.47858]
[1737825055961,1.4615,3343.8,3343.6,0.47859]
[1737825058256,0.47863,3343.3,3343.2,0.00448491]
[1737825058454,3.68643,3343.3,3343.2,0.00448491]
[1737825058661,3.68643,3343.3,3341.9,1.19708]
[1737825058662,0.47878,3342.3,3342.0,2.26877568]
[1737825058856,0.47878,3342.3,3341.9,0.47884]
[1737825059052,3.2078,3342.5,3341.8,0.4954]
[1737825059257,0.4929,3342.4,3342.1,0.4788]
[1737825059460,0.4929,3342.4,3342.2,0.47878]
[1737825060467,0.97166,3342.4,3342.2,0.47878]
[1737825060766,0.47878,3342.3,3342.1,0.4788]
[1737825061064,0.4929,3342.4,3342.2,0.47879]
[1737825061263,0.97167,3342.4,3342.2,0.47879]
[1737825061566,0.4929,3342.4,3342.2,0.47879]
[1737825062265,0.4929,3342.4,3342.0,0.00448491]
[1737825062467,0.97167,3342.4,3342.1,0.4788]
[1737825064969,0.4929,3342.4,3342.0,0.00448491]
[1737825065372,0.4929,3342.4,3342.2,0.47879]
[1737825065970,0.4929,3342.4,3342.3,0.47878]
[1737825066471,0.4929,3342.4,3342.2,0.47879]
[1737825067866,0.4929,3342.4,3342.3,0.47878]
[1737825068270,3.7156,3342.9,3342.8,0.47871]
[1737825068567,4.1668,3342.9,3342.8,0.47871]
[1737825068769,3.2078,3342.9,3342.8,0.47871]
[1737825069267,0.488,3343.5,3343.4,0.47862]
[1737825069566,4.17128491,3343.6,3343.5,0.47861]
[1737825069770,0.96348491,3343.6,3343.5,0.47861]
[1737825071171,0.00448491,3343.6,3343.5,0.47861]
[1737825079073,0.47863,3343.4,3343.1,0.47866]
[1737825079274,3.21228491,3343.6,3343.0,3.43067]
[1737825079275,3.2078,3343.2,3343.0,3.43067]
[1737825079765,3.2078,3343.2,3343.0,0.47867]
[1737825079973,3.2078,3343.2,3342.7,0.9916]
[1737825079974,4.1648,3343.2,3343.1,0.47866]
[1737825080779,0.957,3343.2,3343.1,0.47866]
[1737825081174,0.957,3343.2,3343.0,0.47867]
[1737825081381,3.2078,3343.2,3343.0,0.47867]
[1737825081573,3.2078,3343.2,3342.7,0.5169]
[1737825081779,0.47874,3342.6,3342.3,0.47877]
[1737825082876,3.2078,3342.8,3342.2,2.952]
[1737825083080,3.2078,3342.8,3342.7,0.47872]
[1737825085375,0.5004,3343.1,3343.0,0.47868]
[1737825085585,0.5004,3343.1,3342.4,1.19692]
[1737825085586,0.958,3343.4,3343.2,0.47864]
[1737825085775,0.958,3343.4,3342.3,3.46572568]
[1737825085776,0.958,3343.4,3342.4,1.19691]
[1737825085976,0.47866,3343.2,3342.4,1.19691]
[1737825086174,0.47866,3343.2,3342.5,0.4735]
[1737825086381,0.47866,3343.2,3342.9,0.47869]
[1737825086578,3.68644,3343.3,3342.9,0.47869]
[1737825086974,3.68644,3343.3,3343.0,0.47868]
[1737825087175,3.2078,3343.3,3342.5,0.9848]
[1737825087474,3.2078,3343.3,3343.2,0.47865]
[1737825088780,3.2078,3343.3,3343.1,0.98786]
[1737825088984,3.2078,3343.3,3343.2,0.47865]
[1737825090483,3.2078,3343.3,3342.3,5.47657568]
[1737825090682,0.47865,3343.2,3342.9,0.47868]
[1737825091291,0.47865,3343.2,3343.0,0.47868]
[1737825092780,0.47865,3343.2,3342.4,2.17952]
[1737825092781,3.2078,3343.3,3342.4,0.9826]
[1737825092975,0.47871,3342.8,3342.4,0.9826]
[1737825093188,0.4985,3342.7,3342.4,0.9826]
[1737825093388,1.012,3342.7,3342.6,0.47873]
[1737825094682,0.4985,3342.7,3342.6,0.47873]
[1737825095979,0.97722,3342.7,3342.3,3.2078]
[1737825096574,0.4985,3342.7,3342.6,0.47873]
[1737825097593,3.2078,3342.9,3342.8,0.47871]
[1737825102795,3.2078,3343.2,3342.8,0.47871]
[1737825102997,3.2078,3343.2,3342.7,1.708]
[1737825102998,3.2078,3343.2,3342.7,0.5112]
[1737825103201,3.2078,3343.2,3343.1,0.47866]
[1737825103589,0.47867,3343.1,3343.0,0.47867]
[1737825103785,3.68646,3343.2,3343.0,0.47867]
[1737825103989,3.68646,3343.2,3342.8,0.47871]
[1737825104290,3.68646,3343.2,3343.1,0.47866]
[1737825104987,3.2078,3343.2,3342.7,0.47871]
[1737825105188,1.19667,3343.1,3342.4,0.47876]
[1737825105394,0.47874,3342.6,3342.4,0.47876]
[1737825105699,1.4688,3342.5,3342.4,0.47876]
[1737825110897,0.47878,3342.3,3342.1,0.47881]
[1737825111194,3.68658,3342.3,3342.1,0.47881]
[1737825112287,3.2078,3342.3,3342.0,0.00448491]
[1737825112492,2.74758568,3342.1,3342.0,0.00448491]
[1737825113992,3.2078,3342.3,3342.0,0.00448491]
[1737825114301,0.47881,3342.1,3342.0,0.00448491]
[1737825117206,2.74758568,3342.1,3342.0,0.00448491]
[1737825117502,0.47882,3342.0,3341.2,0.47892]
[1737825117695,0.47882,3342.0,3341.1,3.6921]
[1737825117696,3.2078,3341.6,3341.1,3.6921]
[1737825117896,1.4329,3341.5,3341.1,3.2078]
[1737825118094,0.954,3341.5,3341.1,3.2078]
[1737825118403,0.954,3341.5,3341.2,0.47893]
[1737825119398,0.954,3341.5,3341.1,3.2078]
[1737825119399,1.4329,3341.5,3341.1,3.2078]
[1737825119599,1.4329,3341.5,3341.2,0.47893]
[1737825119988,0.954,3341.5,3341.1,3.2078]
[1737825120191,1.43289,3341.5,3341.2,0.47892]
[1737825120392,1.43289,3341.5,3341.2,0.47893]
[1737825120592,0.51,3341.4,3341.2,0.47893]
[1737825121396,0.51,3341.4,3341.3,0.47892]
[1737825123298,3.21228491,3341.6,3341.1,3.2078]
[1737825123606,3.21228491,3341.6,3341.5,0.47889]
[1737825124009,3.21228491,3341.6,3341.5,1.45079]
[1737825124202,0.00448491,3341.6,3341.5,1.45079]
[1737825124807,0.00448491,3341.6,3341.5,4.65859]
[1737825126309,0.00448491,3341.6,3341.5,1.45079]
[1737825133614,0.00448491,3341.6,3341.2,0.5082]
[1737825133805,0.47891,3341.4,3341.2,0.98713]
[1737825134005,3.2078,3341.3,3341.1,0.5201]
[1737825134207,1.43294,3341.2,3341.1,0.5201]
[1737825134406,1.43294,3341.2,3341.0,0.48344491]
[1737825136712,1.43294,3341.2,3341.1,0.47895]
[1737825138217,1.43294,3341.2,3341.0,0.48344491]
[1737825138508,1.43294,3341.2,3341.1,0.47895]
[1737825138903,1.43294,3341.2,3341.0,0.00448491]
[1737825139111,0.47895,3341.1,3341.0,0.00448491]
[1737825156224,0.4791,3340.1,3339.8,0.47913]
[1737825156425,1.4341,3340.1,3339.8,0.47913]
[1737825158125,0.955,3340.1,3339.7,1.461]
[1737825158332,3.2078,3340.2,3339.7,1.461]
[1737825158528,3.2078,3340.2,3340.1,0.47909]
[1737825158746,3.2078,3340.2,3339.7,1.461]
[1737825158935,3.2078,3340.2,3340.0,0.4791]
[1737825159129,3.2078,3340.2,3339.7,1.461]
[1737825159434,3.68688,3340.2,3339.9,0.47911]
[1737825159731,3.2078,3340.2,3339.9,0.47911]
[1737825160037,3.68689,3340.2,3339.9,0.47911]
[1737825160235,3.68689,3340.2,3339.7,1.461]
[1737825160428,5.95566568,3340.2,3339.9,0.47912]
[1737825160735,0.4791,3340.1,3339.8,0.47913]
[1737825161336,2.26877568,3339.9,3339.3,0.4792]
[1737825161532,0.47917,3339.6,3339.4,0.4871]
[1737825161828,0.47918,3339.5,3339.4,0.4871]
[1737825163529,2.26877568,3339.6,3338.7,0.9881]
[1737825163732,5.47657568,3339.1,3338.7,0.9881]
[1737825164034,1.43425,3339.0,3338.7,0.9881]
[1737825164530,0.955,3339.0,3338.7,0.9881]
[1737825164735,0.955,3339.0,3338.9,0.47927]
[1737825172440,0.9528607,3339.0,3338.9,0.47927]
[1737825174338,0.9528607,3339.0,3338.5,2.952]
[1737825174536,0.47931,3338.6,3338.5,2.952]
[1737825174730,0.47931,3338.6,3338.4,0.47933]
[1737825174731,0.47932,3338.6,3338.2,1.5135]
[1737825174932,0.47932,3338.5,3338.2,1.5135]
[1737825175135,3.2078,3338.7,3338.2,1.5135]
[1737825175336,3.68715,3338.3,3338.2,1.5135]
[1737825175939,3.68715,3338.3,3338.2,1.0216]